Cogmind - Beta 14 @@@ ROGUE MODE // 2025.01.16 @ 15:37:20 Player: Peregrine Result: Destroyed by G-34 Mercenary with Small Laser Performance ------------- Evolutions (0) 0 Regions Visited (1) 200 Robots Destroyed (31) 155 Value Destroyed (536) 536 Prototype IDs (2) 40 Alien Tech Used (0) 0 Bonus (0) 0 TOTAL SCORE: 931 Bonus ------- None Cogmind --------- Core Integrity 0/250 Matter 285/300 Energy 100/100 System Corruption 0% Temperature Cool (12) Movement Core (150) Ox2 Location -10/Materials Parts ------- > --- POWER (1) -------- (None) > --- PROPULSION (2) --- (None) > --- UTILITY (2) ------ Small Storage Unit Core Shielding > --- WEAPON (2) ------- Light Assault Rifle > --- INVENTORY (8) ---- Light Treads Wheel Wheel Terrain Scan Processor Grenade Launcher Peak State ------------ > --- POWER ------------ Light Ion Engine > --- PROPULSION ------- Aluminum Leg Aluminum Leg > --- UTILITY ---------- Small Storage Unit > --- WEAPON ----------- Assault Rifle Light Assault Rifle > --- INVENTORY -------- Light Ion Engine Light Treads Light Treads Wheel Wheel EM Pulse Gun [Rating: 6] Favorites ----------- Power Light Ion Engine Engine Light Ion Engine Propulsion Light Treads Treads Light Treads Leg Aluminum Leg Utility Small Storage Unit Storage Small Storage Unit Protection Core Shielding Weapon EM Pulse Gun Energy Gun EM Pulse Gun Ballistic Gun Light Assault Rifle Build | -11 -10 ------- Run | Yrd Mat Slots Evolved . | . . Power . | . . Propulsion . | . . Utility . | . . Weapon . | . . Parts Attached 11 | . 11 Power 4 | . 4 Engine 4 | . 4 Core . | . . Reactor . | . . Propulsion 2 | . 2 Treads 2 | . 2 Leg . | . . Wheel . | . . Hover . | . . Flight . | . . Utility 1 | . 1 Device . | . . Storage . | . . Processor . | . . Hackware . | . . Protection 1 | . 1 Artifact . | . . Weapon 4 | . 4 Energy Gun 3 | . 3 Energy Cannon . | . . Ballistic Gun 1 | . 1 Ballistic Cannon . | . . Launcher . | . . Special Weapon . | . . Impact Weapon . | . . Slashing Weapon . | . . Piercing Weapon . | . . Special Melee Weapon . | . . Unidentified Prototypes . | . . Parts Lost 4 | . 4 Power 1 | . 1 Propulsion 1 | . 1 Utility . | . . Weapon 2 | . 2 Highest Loss Streak 4 | . 4 To Critical Strikes . | . . Average Slot Usage (%) 80 | . 80 Engine 13 | . 13 Treads 17 | . 17 Storage 14 | . 14 Protection 7 | . 7 Energy Gun 19 | . 19 Ballistic Gun 8 | . 8 Peak Build Rating 6 | 6 6 Average Rating 5 | 6 5 On Entrance 6 | 6 6 Naked Turns . | . . Heaviest Build 15 | 11 15 Greatest Support 40 | 20 40 Greatest Overweight (x) 4 | . 4 Average Overweight (x) . | . . Largest Inventory Capacity 8 | 8 8 Average Capacity 8 | 8 8 Most Carried 8 | 6 8 Average Carried 5 | 6 5 Final Capacity 8 | 8 8 Final Carried 6 | 6 5 Class Distribution -------------------- 100% | Mutant Dominant Class ---------------- Mutant | -10/Materials Resources | -11 -10 ----------- Run | Yrd Mat Matter Collected 384 | 165 219 Remotely . | . . Salvage Created 816 | . 816 Parts 68 | . 68 Haulers Intercepted . | . . Recyclers Shooed 1 | . 1 Parts Field Recycled . | . . Retrieved Matter . | . . Parts Self-Destructed . | . . Prevented . | . . Kills | -11 -10 ------- Run | Yrd Mat Combat Hostiles Destroyed 16 | . 16 Guns 16 | . 16 Classes Destroyed 7 | . 7 Worker 6 | . 6 Builder 4 | . 4 Mechanic 1 | . 1 Operator 1 | . 1 Watcher 3 | . 3 Swarmer 6 | . 6 Grunt 10 | . 10 Best Kill Streak 6 | . 6 Combat Bots Only 4 | . 4 Max Kills in Single Turn 2 | . 2 Gunslinging 1 | . 1 Exploded . | . . Melee . | . . Uniques/NPCs Destroyed . | . . Combat | -11 -10 -------- Run | Yrd Mat Hostile Shots Fired 101 | . 101 Missed 26 | . 26 Damage Taken 842 | . 842 Core 251 | . 251 Absorbed by Shields . | . . Redirected to Shielding 42 | . 42 Core Remaining (%) 100 | 100 . Volleys Fired 68 | . 68 Largest 2 | . 2 Hottest 80 | . 80 Shots Fired 125 | . 125 Gun 125 | . 125 Cannon . | . . Launcher . | . . Special . | . . Kinetic 52 | . 52 Thermal . | . . Explosive . | . . Electromagnetic 73 | . 73 Robot Hit Streak 11 | . 11 Robot Miss Streak 7 | . 7 Penetration Max . | . . Secondary Targets 5 | . 5 Max Gunslinging Chain 1 | . 1 Shots Hit Robots 82 | . 82 Core Hits 40 | . 40 Critical Kills . | . . Critical Parts Destroyed . | . . Critical Strikes 1 | . 1 Corrupt 1 | . 1 Melee Attacks . | . . Impact . | . . Slashing . | . . Piercing . | . . Sneak Attacks . | . . Combat Hostiles . | . . Follow-up Attacks . | . . Damage Inflicted 1506 | . 1506 Guns 1123 | . 1123 Cannons . | . . Explosions 372 | . 372 Melee . | . . Ramming 11 | . 11 Kinetic 370 | . 370 Thermal 372 | . 372 Explosive . | . . Electromagnetic 753 | . 753 Impact . | . . Slashing . | . . Piercing . | . . Highest Corruption . | . . Average Corruption . | . . Corruption Purged . | . . Corruption Blocked . | . . Overload Shots . | . . Overflow Damage 6 | . 6 Projectiles . | . . Explosions 6 | . 6 Melee . | . . Knockbacks . | . . Impact . | . . Kinetic . | . . Secondary . | . . Self-Inflicted Damage 65 | . 65 Shots 2 | . 2 Rammed 2 | . 2 Targets Rammed 2 | . 2 Kicked . | . . Crushed . | . . Highest Temperature 237 | . 237 Average Temperature 58 | . 58 Received Heat Transfer 333 | . 333 Effects 1 | . 1 Energy Bleed 1 | . 1 Siege Activations . | . . Robots Corrupted . | . . Combat Hostiles . | . . Parts Fried 5 | . 5 Impact Corruptions . | . . Robots Melted . | . . Combat Hostiles . | . . Parts Melted 2 | . 2 Heat Transferred 450 | . 450 Parts Sabotaged . | . . Parts Stolen . | . . Parts Stripped . | . . Power Chain Reactions 6 | . 6 Alert | -11 -10 ------- Run | Yrd Mat Peak Influence 372 | . 372 Initial . | . . Average 219 | . 220 Maximum Alert Level 1 | . 1 Low Security (%) 43 | 100 43 Level 1 56 | . 56 Level 2 . | . . Level 3 . | . . Level 4 . | . . Level 5 . | . . High Security . | . . Max Security . | . . Squads Dispatched 4 | . 4 Investigation 3 | . 3 Extermination . | . . Reinforcement 1 | . 1 Assault . | . . Garrison . | . . Intercept . | . . Searches Triggered . | . . Construction Impeded . | . . Haulers Reinforced . | . . Active Scanning Responses . | . . Cargo Convoy Interrupts . | . . Stealth | -11 -10 --------- Run | Yrd Mat Distress Signals 2 | . 2 Communications Jammed . | . . Distress Signals . | . . Times Spotted 27 | . 27 Peak Tracking Total 4 | . 4 Tactical Retreats . | . . Traps | -11 -10 ------- Run | Yrd Mat Traps Triggered 2 | . 2 Indirectly . | . . Trap Hack Attempts . | . . Triggered . | . . Disarmed . | . . Reprogrammed 6 | . 6 Reused . | . . Traps Extracted . | . . Installed . | . . Triggered 1 | . 1 Machines | -11 -10 ---------- Run | Yrd Mat Machines Disabled 2 | . 2 Max in Single Turn 1 | . 1 Machines Repaired . | . . Machines Dismantled . | . . Machines Sabotaged . | . . Overloaded Fab Kills . | . . Hacking | -11 -10 --------- Run | Yrd Mat Machines Accessed 7 | . 7 Terminals 5 | . 5 Fabricators . | . . Repair Stations . | . . Recycling Units 2 | . 2 Scanalyzers . | . . Garrison Access . | . . Total Hacks 29 | . 29 Successful 11 | . 11 Failed 18 | . 18 Catastrophic 1 | . 1 Database Lockouts . | . . Manual 19 | . 19 Terminals 24 | . 24 Fabricators . | . . Repair Stations . | . . Recycling Units 5 | . 5 Scanalyzers . | . . Garrison Access . | . . Terminal Hacks 5 | . 5 Prototype ID Bank 1 | . 1 Unreport Threat 1 | . 1 Reprogram Traps 1 | . 1 Zone Layout 2 | . 2 Fabricator Hacks . | . . Repair Station Hacks . | . . Recycling Unit Hacks . | . . Scanalyzer . | . . Garrison Access Hacks . | . . Unauthorized Hacks 6 | . 6 Terminals 5 | . 5 Botnet 5 | . 5 Fabricators . | . . Repair Stations . | . . Recycling Units 1 | . 1 Tunnel 1 | . 1 Scanalyzers . | . . Garrison Access . | . . Data Cores Recovered . | . . Used . | . . Hacking Detections 6 | . 6 Full Trace Events 2 | . 2 Feedback Events . | . . Feedback Blocked . | . . Robot Schematics Acquired . | . . Robots Built . | . . Authchips . | . . Time . | . . Total Robot Build Rating . | . . Part Schematics Acquired . | . . Parts Built . | . . Authchips . | . . Time . | . . Total Part Build Rating . | . . Parts Repaired . | . . Time . | . . Parts Recycled . | . . Recycled Matter . | . . Retrieved Matter . | . . Retrieved Components . | . . Parts Scanalyzed . | . . Part Schematics Acquired . | . . Parts Damaged . | . . Bothacking | -11 -10 ------------ Run | Yrd Mat Used RIF Installer . | . . Robots Hacked . | . . Non-combat . | . . Combat . | . . Robot Hacks Applied . | . . Relay Couplers Released . | . . Fabnet Peak Effective % . | . . Robots Rewired . | . . Allies Hacked . | . . Hacks Repelled . | . . Allies | -11 -10 -------- Run | Yrd Mat Total Allies . | . . Largest Group . | . . Highest-Rated Group . | . . Highest-Rated Ally . | . . Total Orders . | . . Ally Attacks . | . . Total Damage . | . . Kills . | . . Allies Corrupted . | . . Allies Melted . | . . Intel | -11 -10 ------- Run | Yrd Mat Robot Analysis Total . | . . Derelict Logs Recovered . | . . Drone Launches . | . . Drone Recoveries . | . . Exploration | -11 -10 ------------- Run | Yrd Mat Turns Passed 875 | 3 872 Spaces Moved 403 | 3 400 Core 7 | . 7 Treads 393 | . 393 Legs 3 | 3 . Wheels . | . . Hover . | . . Flight . | . . Fastest Speed 120 | 120 150 Average Speed 160 | 120 160 Slowest Speed 250 | 120 250 Overloaded Moves . | . . Propulsion Burnouts . | . . Robots Hopped . | . . Cave-ins Triggered . | . . Exploration Rate (%) 29 | 2 56 Regions Visited 1 Branch Regions . Pre-discovered Areas 1 | . 1 Known Exits Taken . | . . Unknown Exits Taken 1 | 1 . Scrap Searched . | . . Spaces Dug . | . . Terrain Destroyed 21 | . 21 Melee . | . . Projectile . | . . AOE 21 | . 21 Terrain Rammed . | . . Walls Destroyed . | . . Machines Disabled . | . . Actions | -11 -10 --------- Run | Yrd Mat Total 514 | 2 512 Wait 12 | . 12 Move 402 | 2 400 Hop . | . . Pick Up 11 | . 11 Fast Attach . | . . Attach 6 | . 6 Detach . | . . Swap 5 | . 5 Drop 8 | . 8 Fire 68 | . 68 Melee . | . . Ram . | . . Kick . | . . Crush 2 | . 2 Escape Stasis . | . . Rewire . | . . Trap . | . . Miscellaneous . | . . Route ------- -11/Scrapyard -10/Materials (discovered 2 exits: [*Mat] / [*Min]) History --------- Turn | Location | Event 1 | -11/Scrapyard | Discovered new exit (range 0) 4 | -11/Scrapyard | Entered Materials 320 | -10/Materials | Build established: Mutant 376 | -10/Materials | Discovered new exit (range 16) 456 | -10/Materials | Core integrity fell below 50% 665 | -10/Materials | Discovered new exit (range 11) 865 | -10/Materials | Core integrity fell below 20% 876 | -10/Materials | Destroyed by G-34 Mercenary with Small Laser Last Messages --------------- >>Alert(Purge) Purged threat record, alert level lowered. 00807_ Connecting with Recycling Unit... 00807_ ALERT: Suspicious activity at Recycling Unit M002. Dispatching Investigation squad. 00818_ Slammed into K-01 Serf. 00820_ K-01 Serf destroyed. 00828_ ALERT: Hostiles spotted, dispatching reinforcements to Terminal M006. 00830_ O-16 Technician: "IFF HANDSHAKE FAILED. SECURING TERMINAL." 00831_ Chain reaction triggered in Lgt. Ion Engine. 00831_ Hover Unit melted. 00831_ O-16 Technician destroyed. 00840_ EM Pulse Gun destroyed. 00842_ Lgt. Treads destroyed. 00843_ Heat Sink fried. 00843_ G-34 Mercenary destroyed. 00850_ EM Pulse Gun destroyed. 00856_ K-01 Serf collects debris. 00860_ Ion Engine destroyed. Map ----- +----------------------------------------------------+ | ??# #??#"T # #???# + ## | | ??# #??#"" # #???# ## # | | ### #??# ##+#######???# ## """ # | | ## #### ## #?######### ## "" # | | # #######+### ### *%=##+####### """ # | | # == ! =!%= [ =%! + | | / ![ < ==% *%!=[ # | | # = ! %=** =[%! """ # | | # ! ######+#####+##" "##+####### """ # | | # ######### | #" !"| "#!== ## """ # | | # #???????# #"""""""# """ ## ## | | ## #???????# ######### """ ## | | ?# #???????# ""#?????# """ + % | | ?# #???????# T"#?????# """ ### | | ?# #???????# ""#?????# ####+######## | | ?# #???????# #######?# """ # #??? | | ???????????# ## #?# """ # #??? | | ???????????###" "#+#### #?# """ # """ #??? | | ?????????????#"Y"# #??# #?# """ # """"" #??? | | ?????????????#"""# #??# #?# # """"" #??? | | ?????????????##### #??# #?######### """"" #??? | | ?????????????????# #??# #?????????# """ #??? | | ?????????????????#%#??# #???????????? /#??? | | ?????????????????# #??# #????????????? #??? | | ?????????????????# #??? #?????????????######??? | | ?????????????????#%#??###@###????????????????????? | | ?????????????????# #### g #????????????????????? | | ?????????????????# % g#????????????????????? | | ????????????"""" + $/=%* ?????????????? | | ?????????????""" # ### ?????????? | | ???????????? ???###### #?????? ###??????????? | | ??????????????????????### ###????????????????????? | | ????????????????????????# #??????????????????????? | | ????????????????????????# #??????????????????????? | | ????????????????????????# #??????????????????????? | | ????????????????????????? #??????????????????????? | | ????????????????????????? #??????????????????????? | | ?????????????????????????##??????????????????????? | | ?????????????????????????????????????????????????? | | ?????????????????????????????????????????????????? | | ?????????????????????????????????????????????????? | | ?????????????????????????????????????????????????? | | ?????????????????????????????????????????????????? | | ?????????????????????????????????????????????????? | | ?????????????????????????????????????????????????? | | | | | | | | | | | +----------------------------------------------------+ Best States ------------- Heat Dissipation 25 Energy Generation 10 Energy Capacity 250 Matter Stores 300 Matter Capacity 300 Sight Range 16 Terrain Scan Density 10 Core Shielding 20 Evasion (%) 40 Recoil Reduction 2 Item Schematics ----------------- None Robot Schematics ------------------ None Fabricated ------------ Nothing Alien Tech Used ----------------- None Achievements -------------- None Challenges ------------ None Game ------ Seed MakeshiftImpulseSubcomponent Manual? 0 Play Time 00:13:23 Cumulative 95.3 hours Start 2025.01.16 @ 15:29:43 End 2025.01.16 @ 15:37:20 Sessions 1 Manual Loads 0 Difficulty Rogue Special Mode None Game No. 113 Rogue 98 Adventurer 15 Explorer 0 Win Type - Total 2 Types 1/0/1/0/0/0/0/0/0 Lore% 25 Gallery% 60 Achievement% 49 Wizard Run 0 Options --------- Layout 0 ASCII 0 Keyboard 0 Movement Mouse Keybinds 0 Fullscreen 2 Font 36/Smallcaps Map View 76x50 Zoom Use 0% Tactical HUD 1 Map Filters NONE Filters NONE Steam 1 RUN: af9f7939-25e1-4974-a1d1-0cd4d930994c